bitfinex/quotes_ETHUSD_20240821
["timestamp","ask_amount","ask_price","bid_price","bid_amount"]
[1724270512635,3.76373,2657.0,2656.4,3.76438]
[1724270512862,3.76373,2657.0,2656.3,3.216934]
[1724270512863,3.76381,2656.9,2656.3,3.216934]
[1724270513046,3.76355,2657.1,2656.4,1.0746274]
[1724270513255,3.76379,2656.9,2656.4,1.0746274]
[1724270513688,3.76447,2656.5,2656.0,2.2985]
[1724270513972,3.76402,2656.8,2656.1,3.76483]
[1724270514122,3.76357,2657.1,2655.9,3.0]
[1724270514326,3.76357,2657.1,2656.5,7.52847]
[1724270514524,3.76357,2657.1,2656.5,3.76421]
[1724270515272,3.76336,2657.2,2656.5,3.76421]
[1724270515473,3.76337,2657.2,2656.7,3.76404]
[1724270515686,3.76337,2657.2,2656.6,0.376421]
[1724270515880,3.76321,2657.3,2656.7,2.4964]
[1724270516492,3.76343,2657.2,2656.7,2.4964]
[1724270516771,3.76321,2657.3,2656.8,0.6636921]
[1724270517013,7.24,2657.6,2657.0,3.76361]
[1724270517183,3.76269,2657.7,2657.1,3.76347]
[1724270517491,7.52547,2657.7,2657.1,3.76347]
[1724270518028,3.76253,2657.8,2657.2,2.4964]
[1724270518227,3.76253,2657.8,2657.3,0.625987]
[1724270518541,3.59e-06,2658.0,2657.9,3.76236]
[1724270518860,2.3687,2659.5,2658.3,3.76171]
[1724270518861,3.76072,2659.1,2658.3,3.76171]
[1724270519180,3.76072,2659.1,2657.9,6.25876]
[1724270519181,3.76043,2659.3,2658.1,0.3779]
[1724270519378,0.02,2660.0,2658.4,3.76165]
[1724270519379,3.76004,2659.6,2658.4,3.76165]
[1724270519547,2.3687,2659.8,2658.6,3.76125]
[1724270519548,3.76039,2659.3,2658.6,3.76125]
[1724270519752,3.76036,2659.4,2658.7,2.872525]
[1724270519753,3.76054,2659.2,2658.7,2.872525]
[1724270519941,3.76036,2659.4,2658.7,2.4964]
[1724270520147,0.128353,2659.9,2658.7,2.4964]
[1724270520374,3.75968,2659.8,2658.9,3.76093]
[1724270520584,3.75997,2659.6,2658.8,0.31964]
[1724270520804,3.75971,2659.8,2658.8,4.08069]
[1724270521278,0.128353,2659.9,2658.8,4.08069]
[1724270521487,0.128353,2659.9,2658.9,0.957709]
[1724270521623,0.128353,2659.9,2659.0,6.25708]
[1724270521829,0.128353,2659.9,2659.0,2.4964]
[1724270522030,0.128353,2659.9,2659.4,2.367]
[1724270523071,0.128353,2659.9,2659.7,3.75979]
[1724270523273,0.128353,2659.9,2659.8,0.375979]
[1724270523631,0.128353,2659.9,2659.6,0.7]
[1724270523863,0.128353,2659.9,2659.8,9.88636]
[1724270524083,0.02,2660.0,2659.9,12.35649]
[1724270524249,4.17967399,2661.5,2659.9,12.35649]
[1724270524250,0.42236399,2661.5,2661.4,3.75742]
[1724270524448,0.42236399,2661.5,2661.3,2.3534]
[1724270524758,0.42236399,2661.5,2660.9,2.3534]
[1724270525066,0.42236399,2661.5,2661.3,2.3534]
[1724270525268,0.42236399,2661.5,2661.4,10.34694]
[1724270525580,0.42236399,2661.5,2661.4,12.79694]
[1724270525745,0.42236399,2661.5,2661.4,5.2821]
[1724270525966,3.75759,2661.3,2660.7,2.2821]
[1724270526190,0.42236399,2661.5,2660.7,2.51031]
[1724270526350,0.42236399,2661.5,2660.9,3.75806]
[1724270526800,0.42236399,2661.5,2660.7,2.51031]
[1724270526979,3.75755,2661.4,2660.7,6.26864]
[1724270527300,0.42236399,2661.5,2660.8,3.75816]
[1724270527502,0.42236399,2661.5,2661.0,3.75796]
[1724270527811,0.42236399,2661.5,2661.3,3.75756]
[1724270527950,3.75768,2661.3,2660.8,0.626864]
[1724270528308,3.75795,2661.1,2660.7,2.2821]
[1724270528466,3.75822,2660.9,2660.3,2.414]
[1724270528666,3.75856,2660.6,2660.3,2.414]
[1724270528968,2.2797,2661.2,2659.8,2.414]
[1724270529492,3.7588,2660.5,2659.8,2.414]
[1724270529711,3.75863,2660.6,2659.8,6.1736]
[1724270530000,0.22797,2661.1,2659.9,4.752819]
[1724270530220,3.75899,2660.3,2659.8,2.414]
[1724270530513,0.22797,2661.1,2659.8,2.414]
[1724270530514,3.75915,2660.2,2659.8,2.414]
[1724270530651,0.22797,2661.1,2659.4,2.4357]
[1724270530652,3.75953,2660.0,2659.4,2.4357]
[1724270531148,3.75916,2660.2,2659.4,2.4357]
[1724270531149,3.75916,2660.2,2659.4,6.19584]
[1724270531807,3.75942,2660.0,2659.4,6.19584]
[1724270532003,3.0,2660.9,2659.5,0.7]
[1724270532305,3.7579,2661.1,2660.4,3.75881]
[1724270532805,3.7579,2661.1,2660.2,3.75902]
[1724270532999,2.4414,2661.4,2659.8,4.83752]
[1724270533000,3.75871,2660.5,2659.8,3.75959]
[1724270533200,3.75871,2660.5,2659.9,3.75951]
[1724270533349,7.51698,2660.7,2659.9,3.75951]
[1724270533556,3.75794,2661.1,2660.1,4.13712]
[1724270533923,3.75871,2660.5,2659.9,0.619529]
[1724270534201,3.75871,2660.5,2659.8,3.75967]
[1724270534512,3.75871,2660.5,2659.7,6.19546]
[1724270534692,7.51751,2660.5,2659.9,3.75953]
[1724270534852,3.75871,2660.5,2659.9,3.75953]
[1724270535308,3.75857,2660.6,2659.9,4.755029]
[1724270535488,3.75846,2660.7,2659.9,4.754929]
[1724270535662,3.75846,2660.7,2660.0,3.75929]
[1724270535663,3.75856,2660.6,2660.0,3.75929]
[1724270535860,3.75846,2660.7,2660.0,3.75929]
[1724270536106,3.75786,2661.1,2659.9,1.698199]
[1724270536267,0.8396764,2661.3,2660.4,2.3395]
[1724270536268,3.7576,2661.3,2660.4,2.3395]
[1724270536607,4.17967399,2661.5,2660.9,3.7581]
[1724270536904,7.93705399,2661.5,2660.9,3.7581]
[1724270537130,4.17967399,2661.5,2660.9,3.75811]
[1724270537604,4.17967399,2661.5,2660.9,4.509661]
[1724270537605,0.42236399,2661.5,2660.9,4.509661]
[1724270537814,4.17966399,2661.5,2660.9,4.509661]
[1724270537973,3.75759,2661.3,2660.5,3.75861]
[1724270538155,0.42236399,2661.5,2660.4,6.09819]
[1724270538156,3.75799,2661.0,2660.4,6.09819]
[1724270538474,3.75793,2661.1,2660.4,6.09819]
[1724270538475,7.51581,2661.1,2660.4,3.7588]
[1724270538687,4.17968399,2661.5,2660.7,3.7583]
[1724270539007,4.17968399,2661.5,2660.9,3.75804]
[1724270539008,0.42236399,2661.5,2660.9,3.75804]
[1724270539233,0.42236399,2661.5,2660.8,0.37583]
[1724270539234,0.42236399,2661.5,2661.4,3.75742]
[1724270539505,3.75589,2662.5,2661.2,3.75764]
[1724270539712,3.75717,2661.6,2661.0,6.17347]
[1724270540012,3.75717,2661.6,2660.9,3.75809]
[1724270540174,9.28898,2662.5,2660.8,4.134]
[1724270540175,6.180863,2662.6,2661.2,0.7]
[1724270540376,3.75614,2662.4,2661.6,3.75704]
[1724270540560,0.128353,2662.6,2661.3,3.1156]
[1724270540561,3.7566,2662.0,2661.3,2.4156]
[1724270540762,3.75708,2661.7,2661.1,0.3779]
[1724270540967,3.884143,2662.6,2661.4,0.7]
[1724270541317,0.128353,2662.6,2662.0,3.75643]
[1724270541464,3.75598,2662.5,2661.8,3.75676]
[1724270541671,0.128353,2662.6,2661.9,3.75659]
[1724270541869,3.884073,2662.6,2661.9,0.992895]
[1724270542123,0.128353,2662.6,2662.0,3.75656]
[1724270542302,0.128353,2662.6,2661.9,0.992895]
[1724270542507,3.75653,2662.1,2661.3,2.4156]
[1724270542718,2.425053,2662.6,2661.0,3.75794]
[1724270542719,3.7571,2661.7,2661.0,3.75794]
[1724270542922,3.7571,2661.7,2660.9,2.7935]
[1724270542923,3.7566,2662.0,2661.1,0.655144]
[1724270543073,2.3351,2662.4,2660.9,2.7935]
[1724270543074,6.09115,2662.4,2661.4,3.75741]
[1724270543271,3.75638,2662.2,2661.5,3.75725]
[1724270543475,3.75638,2662.2,2661.2,3.75759]
[1724270543677,2.3351,2662.4,2661.2,3.75769]
[1724270543678,3.7567,2662.0,2661.2,3.75769]
[1724270543927,3.75633,2662.2,2661.2,3.75767]
[1724270544218,3.75671,2661.9,2661.1,3.75778]
[1724270544745,3.75645,2662.1,2661.1,3.75778]
[1724270544746,3.75685,2661.8,2661.1,3.75778]
[1724270544879,3.75703,2661.7,2661.1,3.75778]
[1724270545073,3.75685,2661.8,2660.9,3.7581]
[1724270545324,4.132535,2661.8,2660.9,4.54733]
[1724270545532,3.75725,2661.6,2661.0,3.75797]
[1724270545820,3.757,2661.7,2660.9,4.54733]
[1724270546129,3.75786,2661.1,2660.4,3.75882]
[1724270546340,0.375685,2661.8,2659.7,3.75971]
[1724270546341,3.75844,2660.7,2659.7,3.75971]
[1724270546631,3.75844,2660.7,2659.6,6.2293]
[1724270546773,6.19457,2661.0,2659.7,1.068938]
[1724270546975,3.75856,2660.6,2659.5,3.76007]
[1724270547247,3.75885,2660.4,2659.5,3.76007]
[1724270547376,3.75885,2660.4,2659.7,3.75977]
[1724270547709,3.75854,2660.7,2658.8,3.1356]
[1724270547710,3.75936,2660.1,2658.8,3.1356]
[1724270547909,3.75912,2660.2,2659.4,3.76024]
[1724270548092,3.75925,2660.1,2659.2,3.76047]
[1724270548293,3.75925,2660.1,2659.0,4.13867]
[1724270548490,0.613835,2660.1,2659.1,0.413867]
[1724270548696,3.75982,2659.7,2659.1,0.413867]
[1724270549290,3.75961,2659.9,2659.1,0.413867]
[1724270549490,2.3791,2660.3,2659.1,0.413867]
[1724270549780,3.0,2660.4,2659.5,3.76003]
[1724270549781,3.75883,2660.4,2659.5,3.76003]
[1724270550001,3.75871,2660.5,2659.4,3.76011]
[1724270550203,3.76017,2659.5,2658.7,3.76111]
[1724270550426,3.75997,2659.6,2658.7,3.76118]
[1724270550628,3.76053,2659.2,2658.8,0.376118]
[1724270550805,3.76053,2659.2,2658.4,2.4904]
[1724270550806,3.76053,2659.2,2658.4,6.25202]
[1724270551102,3.76067,2659.1,2658.4,2.4904]
[1724270551300,2.3139,2659.6,2658.0,3.76217]
[1724270551301,3.76053,2659.2,2658.3,3.76177]
[1724270551582,2.3139,2659.3,2658.4,4.137817]
[1724270551785,3.7612,2658.8,2658.0,3.76221]
[1724270551980,3.76125,2658.7,2658.0,3.76221]
[1724270552186,3.76139,2658.6,2657.8,3.7625]
[1724270552422,3.76153,2658.5,2657.9,0.62529]
[1724270552598,6.07454,2659.2,2657.9,0.62529]
[1724270552599,3.76083,2659.0,2657.9,0.62529]
[1724270552801,3.76253,2657.8,2657.0,3.76361]
[1724270553025,3.76253,2657.8,2656.9,3.76366]
[1724270553026,3.7627,2657.7,2656.9,3.76366]
[1724270553349,3.76187,2658.3,2656.1,3.76491]
[1724270553350,3.76368,2657.0,2656.1,3.76491]
[1724270553641,3.7638,2656.9,2656.2,3.76474]
[1724270553784,3.76436,2656.5,2656.2,2.376491]
[1724270553989,0.613163,2657.4,2655.7,3.76548]
[1724270553990,3.76449,2656.4,2655.7,3.76548]
[1724270554188,3.7634,2657.2,2656.4,3.76437]
[1724270554392,2.9187,2657.6,2656.6,3.7642]
[1724270554393,6.68155,2657.6,2656.6,3.7642]
[1724270554630,2.3687,2657.6,2657.0,3.76354]
[1724270554813,2.3687,2657.6,2656.8,3.76392]
[1724270555023,3.7631,2657.4,2656.8,0.752806]
[1724270555343,2.3687,2657.6,2656.8,4.516716]
[1724270555344,6.13154,2657.6,2656.8,4.516716]
[1724270555636,6.1315,2657.6,2656.9,3.76378]
[1724270555838,6.1315,2657.6,2656.8,4.516716]
[1724270555839,6.1315,2657.6,2656.8,0.752806]
[1724270556106,2.3687,2657.6,2656.4,0.44094059]
[1724270556263,2.3687,2657.6,2657.0,3.76354]
[1724270556470,0.39372414,2657.5,2656.8,3.76378]
[1724270556628,3.76378,2656.9,2656.2,3.76468]
[1724270556839,3.76422,2656.6,2656.0,23.76501]
[1724270557038,3.76329,2657.3,2656.0,23.76501]
[1724270557039,3.76446,2656.5,2656.0,20.0]
[1724270557438,3.76479,2656.2,2656.0,20.0]
[1724270557737,7.5291,2656.4,2656.0,20.0]
[1724270557925,3.76427,2656.6,2656.0,20.0]
[1724270558131,3.76435,2656.5,2656.0,20.0027]
[1724270558364,3.76442,2656.5,2656.0,20.0027]
[1724270558714,3.76465,2656.3,2656.0,20.0027]
[1724270558918,3.76415,2656.7,2656.0,20.0027]
[1724270559257,3.76407,2656.7,2656.1,3.76481]
[1724270559415,6.14333,2656.8,2656.1,3.76481]
[1724270559614,3.7641,2656.7,2656.1,3.76481]
[1724270559882,3.76411,2656.7,2656.1,3.76481]
[1724270560166,3.76431,2656.6,2656.0,20.0]
[1724270560869,2.9293,2656.5,2656.0,20.0]
[1724270561075,3.76491,2656.1,2656.0,20.0]
[1724270561377,7.52982,2656.1,2656.0,20.0]
[1724270561554,3.76468,2656.3,2656.0,20.0]
[1724270561710,6.14366,2656.5,2656.0,20.0]
[1724270562078,3.76451,2656.4,2656.0,20.0]
[1724270562373,3.76464,2656.3,2656.0,20.0]
[1724270562521,2.3793,2656.5,2656.0,22.0]
[1724270562723,3.76418,2656.7,2656.0,22.0]
[1724270562949,3.76418,2656.7,2656.0,20.0]
[1724270562950,3.76445,2656.5,2656.0,20.0]
[1724270563317,3.76412,2656.7,2656.0,23.76505]
[1724270563688,2.3887,2657.4,2656.8,3.76388]
[1724270563982,2.3887,2657.4,2656.0,20.0]
[1724270563983,0.39372414,2657.5,2656.7,2.3552]
[1724270564120,7.24,2658.5,2657.5,3.76283]
[1724270564121,3.76201,2658.2,2657.5,3.76283]
[1724270564316,4.15593846,2658.0,2657.3,3.7632]
[1724270564671,0.39370846,2658.0,2657.8,3.7625]
[1724270564822,3.76199,2658.2,2657.3,3.76317]
[1724270565021,3.76233,2658.0,2657.3,4.139487]
[1724270565365,3.76196,2658.2,2657.3,0.376317]
[1724270565532,3.76196,2658.2,2657.6,3.76277]
[1724270565867,0.39367628,2658.4,2658.1,3.76198]
[1724270566020,0.39367628,2658.4,2657.9,3.76232]
[1724270566717,0.39367628,2658.4,2658.0,3.76222]
[1724270566948,0.39367628,2658.4,2657.7,3.76262]
[1724270567113,0.39367628,2658.4,2657.9,3.76227]
[1724270567313,4.15535628,2658.4,2657.8,0.376262]
[1724270567856,0.39367628,2658.4,2657.8,0.376262]
[1724270568057,0.39367628,2658.4,2657.8,4.138762]
[1724270568602,0.39367628,2658.4,2658.0,3.7622]
[1724270568750,0.39367628,2658.4,2658.1,4.13828]
[1724270568956,0.39367628,2658.4,2658.3,3.7618]
[1724270569171,0.03033453,2658.4,2658.3,7.5236]
[1724270569472,3.75987,2659.7,2659.0,3.76071]
[1724270569669,0.3935196,2659.5,2659.1,3.76065]
[1724270569854,0.3935196,2659.5,2659.0,3.76071]
[1724270570054,0.3935196,2659.5,2658.4,3.76159]
[1724270570055,0.3935196,2659.5,2659.4,3.76024]
[1724270570294,3.75921,2660.2,2659.3,3.76034]
[1724270570601,2.3663,2660.4,2659.1,3.76064]
[1724270570602,4.15291904,2659.9,2659.2,3.76052]
[1724270571101,4.15291904,2659.9,2659.1,3.76064]
[1724270571102,4.15291904,2659.9,2659.3,3.76037]
[1724270571605,3.76027,2659.4,2658.7,4.13903]
[1724270571898,3.76022,2659.5,2658.7,4.13903]
[1724270571899,3.76022,2659.5,2658.8,3.76105]
[1724270572113,3.76022,2659.5,2658.8,0.790008]
[1724270572270,2.3663,2659.8,2658.3,5.384]
[1724270572271,3.76082,2659.0,2658.3,3.7617]
[1724270572614,3.76082,2659.0,2658.1,3.76198]
[1724270572901,0.55,2659.4,2658.1,3.76198]
[1724270572902,7.52233,2658.8,2658.1,3.76198]
[1724270573107,2.3663,2659.6,2658.7,3.76113]
[1724270573307,2.3663,2659.6,2658.6,3.76137]
[1724270573308,3.76059,2659.2,2658.6,3.76137]
[1724270573456,3.76038,2659.3,2658.7,3.76122]
[1724270573905,2.3663,2659.6,2658.8,3.76106]
[1724270573906,9.88632,2659.6,2658.8,3.76106]
[1724270574064,9.88632,2659.6,2658.3,2.2739]
[1724270574065,3.76067,2659.1,2658.3,3.76172]
[1724270574255,2.3663,2659.6,2658.3,0.4754218]
[1724270574256,3.76048,2659.3,2658.3,0.4754218]
[1724270574590,3.76016,2659.5,2658.7,3.76122]
[1724270574789,3.76048,2659.3,2658.5,3.7614]
[1724270575078,3.76096,2658.9,2658.2,3.76193]
[1724270575291,3.76111,2658.8,2658.1,0.614598]
[1724270575477,3.76111,2658.8,2658.0,3.76216]
[1724270575478,3.76125,2658.7,2658.0,3.76214]
[1724270575863,3.76125,2658.7,2658.0,3.76212]
[1724270576389,2.3533,2658.9,2658.3,3.76168]
[1724270576567,2.3674,2659.3,2657.8,3.0]
[1724270576761,3.76067,2659.1,2658.4,3.76155]
[1724270576959,3.76089,2659.0,2658.2,3.76189]
[1724270577158,3.76104,2658.9,2658.2,3.76189]
[1724270577405,3.76089,2659.0,2658.2,3.76189]
[1724270577570,2.3674,2659.3,2658.5,3.76151]
[1724270577752,2.3674,2659.3,2658.1,3.76204]
[1724270577956,3.76004,2659.6,2658.9,3.76085]
[1724270578182,3.7601,2659.5,2658.9,3.76085]
[1724270578581,7.52012,2659.6,2658.9,3.76085]
[1724270578794,3.76004,2659.6,2659.0,3.76079]
[1724270579005,2.3674,2659.7,2659.2,3.76044]
[1724270579185,2.3674,2659.7,2659.1,3.76066]
[1724270579186,0.39337904,2659.9,2659.5,3.76007]
[1724270579579,0.39337904,2659.9,2659.4,3.76022]
[1724270580492,3.75996,2659.6,2658.9,7.5245]
[1724270580691,4.15301904,2659.9,2659.3,3.76036]
[1724270580900,3.75969,2659.8,2659.3,3.76036]
[1724270581074,3.75969,2659.8,2659.1,3.76054]
[1724270581274,0.39337904,2659.9,2659.3,3.76026]
[1724270581478,0.39337904,2659.9,2659.2,3.76052]
[1724270581678,3.75969,2659.8,2659.3,0.376052]
[1724270581918,3.75969,2659.8,2659.2,7.52086]
[1724270582219,3.75969,2659.8,2659.3,3.76038]
[1724270582525,0.39337904,2659.9,2659.3,3.76038]
[1724270582676,4.15300904,2659.9,2659.3,3.76038]
[1724270584009,3.75981,2659.8,2659.2,3.76042]
[1724270584180,4.15300904,2659.9,2659.3,3.76036]
[1724270584574,3.75979,2659.8,2659.2,3.76042]
[1724270584829,3.7403154,2659.7,2658.9,0.0027]
[1724270585041,4.15298904,2659.9,2659.3,3.76034]
[1724270585323,0.39337904,2659.9,2658.9,0.0027]
[1724270585474,0.39337904,2659.9,2659.6,3.75984]
[1724270585679,0.39337904,2659.9,2659.6,4.135824]
[1724270585913,0.39337904,2659.9,2659.6,3.75984]
[1724270586073,0.39337904,2659.9,2659.4,3.76016]
[1724270586300,3.75972,2659.8,2659.3,3.76036]
[1724270586651,2.4806,2659.8,2658.9,0.0027]
[1724270586795,3.76081,2659.0,2658.9,0.0027]
[1724270587121,11.28243,2659.0,2658.9,0.0027]
[1724270587325,11.83243,2659.0,2658.9,0.0027]
[1724270587489,12.22593513,2659.0,2658.9,0.0027]
[1724270588121,8.46512513,2659.0,2658.9,0.0027]
[1724270588325,9.93575364,2659.0,2658.9,0.0027]
[1724270588525,9.38575364,2659.0,2658.9,0.0027]
[1724270588851,13.69656364,2659.0,2658.9,0.0027]
[1724270589158,9.93575364,2659.0,2658.9,0.0027]
[1724270589314,4.15431513,2659.0,2658.9,0.0027]
[1724270589515,0.39350513,2659.0,2658.9,0.0027]
[1724270590699,0.39350513,2659.0,2658.9,7.5246]
[1724270590903,0.03033725,2659.0,2658.9,7.5246]
[1724270591151,3.75973,2659.8,2659.1,3.76066]
[1724270591520,3.75944,2660.0,2659.0,0.98944]
[1724270591869,2.4225,2660.2,2659.1,3.76062]
[1724270592024,3.76005,2659.6,2658.9,3.76364]
[1724270592227,3.76005,2659.6,2658.9,0.0027]
[1724270592228,3.76012,2659.5,2658.9,0.0027]
[1724270592438,3.76017,2659.5,2658.9,0.0027]
[1724270592601,3.75989,2659.7,2658.9,0.792986]
[1724270592803,2.4225,2660.2,2658.9,0.0027]
[1724270593117,3.7602,2659.5,2658.9,3.76093]
[1724270593302,2.4225,2660.2,2658.6,0.3779]
[1724270593502,3.76002,2659.6,2658.7,3.76123]
[1724270593808,3.75984,2659.7,2659.1,3.76061]
[1724270593964,9.18168,2660.2,2658.7,3.76122]
[1724270593965,3.76021,2659.5,2658.7,3.76122]
[1724270594133,3.76021,2659.5,2658.6,3.76133]
[1724270594134,3.7604,2659.3,2658.6,3.76133]
[1724270594337,3.76017,2659.5,2658.5,4.13935]
[1724270594632,3.76017,2659.5,2658.4,2.4221]
[1724270594633,3.76068,2659.1,2658.4,2.4221]
[1724270594836,3.76106,2658.9,2658.5,0.618379]
[1724270595151,3.76106,2658.9,2658.1,4.13989]
[1724270595522,3.76045,2659.3,2658.1,0.3779]
[1724270595766,3.76045,2659.3,2658.6,3.76127]
[1724270596136,3.76065,2659.2,2658.5,3.76139]
[1724270596317,3.76067,2659.1,2658.3,3.76168]
[1724270596520,3.7604,2659.3,2658.3,3.76175]
[1724270596864,3.76076,2659.1,2658.5,3.76142]
[1724270597027,3.76042,2659.3,2658.1,1.0279]
[1724270597231,3.76124,2658.7,2658.1,3.76196]
[1724270597448,3.76096,2658.9,2658.1,3.76196]
[1724270597761,3.76106,2658.9,2658.2,3.76192]
[1724270597916,3.76124,2658.7,2658.1,3.76196]
[1724270598113,3.76124,2658.7,2657.9,3.76227]
[1724270598352,3.76106,2658.9,2658.0,0.376227]
[1724270598568,0.24225,2659.4,2658.3,3.7617]
[1724270598768,3.76127,2658.7,2657.9,3.76233]
[1724270599278,3.76069,2659.1,2657.8,3.76247]
[1724270599564,7.52037,2659.5,2658.7,3.76123]
[1724270599770,3.76013,2659.5,2658.9,3.76094]
[1724270600066,3.76013,2659.5,2658.7,4.379563]
[1724270600067,3.76025,2659.4,2658.7,8.140713]
[1724270600377,3.76041,2659.3,2658.7,4.379483]
[1724270600661,3.76041,2659.3,2658.7,4.379473]
[1724270600865,3.76041,2659.3,2658.8,0.4379473]
[1724270601070,3.76072,2659.1,2658.7,0.0027]
[1724270601271,3.76084,2659.0,2658.7,0.0027]
[1724270601424,3.76063,2659.2,2658.7,0.0027]
[1724270601619,3.76029,2659.4,2658.7,0.0027]
[1724270601819,3.76029,2659.4,2658.9,3.76091]
[1724270602076,3.7599,2659.7,2659.1,3.76056]
[1724270602217,2.3237,2660.0,2659.0,0.376091]
[1724270602579,7.52069,2659.4,2659.0,0.376091]
[1724270602875,3.76054,2659.2,2658.7,0.0027]
[1724270603572,3.7603,2659.4,2658.7,3.76383]
[1724270603797,3.76042,2659.3,2658.8,0.376383]
[1724270604075,3.7603,2659.4,2658.8,0.376383]
[1724270604076,3.76055,2659.2,2658.8,0.376383]
[1724270604441,7.52066,2659.4,2658.8,0.376383]
[1724270604775,3.76091,2659.0,2658.7,0.0027]
[1724270604918,3.76061,2659.2,2658.7,0.0027]
[1724270605475,3.76107,2658.9,2658.7,0.0027]
[1724270605765,3.76075,2659.1,2658.7,0.0027]
[1724270605967,7.52154,2659.1,2658.7,0.0027]
[1724270606261,3.76104,2658.9,2658.7,0.0027]
[1724270606492,7.52218,2658.8,2658.7,0.0027]
[1724270606619,9.80368,2658.8,2658.7,0.0027]
[1724270606823,10.35368,2658.8,2658.7,0.0027]
[1724270607133,14.11477,2658.8,2658.7,0.0027]
[1724270607521,10.35368,2658.8,2658.7,0.0027]
[1724270607759,9.80368,2658.8,2658.7,0.0027]
[1724270607934,10.35368,2658.8,2658.7,0.0027]
[1724270608134,9.80368,2658.8,2658.7,0.0027]
[1724270608519,13.56477,2658.8,2658.7,0.0027]
[1724270608717,14.11477,2658.8,2658.7,0.0027]
[1724270608979,15.60321134,2658.8,2658.7,0.0027]
[1724270609280,19.36430134,2658.8,2658.7,1e-05]
[1724270609481,26.51887169,2658.8,2658.7,1e-05]
[1724270609821,26.51887169,2658.8,2656.7,3.76395]
[1724270609822,3.76309,2657.4,2656.7,3.76395]
[1724270610037,3.76309,2657.4,2656.8,4.140305]
[1724270610038,3.76321,2657.4,2656.8,4.140305]
[1724270610286,3.76286,2657.6,2656.9,3.76378]
[1724270610431,3.76323,2657.3,2656.8,0.376395]
[1724270610626,2.3387,2657.8,2656.8,0.376395]
[1724270610627,6.10124,2657.8,2656.8,0.376395]
[1724270610833,3.76265,2657.7,2657.1,3.76337]
[1724270611179,3.76294,2657.5,2656.9,3.76375]
[1724270611350,3.76294,2657.5,2657.0,0.4140145]
[1724270611523,3.76312,2657.4,2656.8,0.376395]
[1724270611722,3.76324,2657.3,2656.8,0.376395]
[1724270611970,3.76281,2657.6,2656.8,0.376395]
[1724270612323,3.76203,2658.2,2657.3,3.76311]
[1724270612521,3.76203,2658.2,2657.5,3.76291]
[1724270612758,3.76203,2658.2,2657.5,8.278282]
[1724270612959,3.76203,2658.2,2657.5,4.515442]
[1724270613139,3.76203,2658.2,2657.5,3.76284]
[1724270613442,2.3387,2658.5,2656.9,3.76368]
[1724270613443,3.76289,2657.6,2656.9,3.76368]
[1724270613667,3.76228,2658.0,2656.8,2.663095]
[1724270613867,3.7624,2657.9,2657.3,3.76312]
[1724270614172,3.76169,2658.4,2657.0,3.76363]
[1724270614173,3.76274,2657.7,2657.0,3.76363]
[1724270614386,3.76274,2657.7,2657.1,3.7634]
[1724270614578,3.76263,2657.8,2657.1,3.7634]
[1724270614729,3.76242,2657.9,2657.2,3.76334]
[1724270614924,3.76213,2658.1,2657.4,2.3867]
[1724270615125,3.76228,2658.0,2657.5,0.614991]
[1724270615331,3.76213,2658.1,2657.5,0.614991]
[1724270615579,7.52432,2658.1,2657.5,0.614991]
[1724270615876,3.76273,2657.7,2657.0,3.76361]
[1724270616055,7.52547,2657.7,2657.0,3.76361]
[1724270616452,3.76211,2658.1,2657.5,3.76285]
[1724270616623,3.0,2658.7,2657.8,3.7625]
[1724270616765,3.76162,2658.5,2657.9,4.1386]
[1724270617514,3.76154,2658.5,2657.5,2.4825]
[1724270617819,3.76154,2658.5,2657.9,3.76236]
[1724270618015,3.76176,2658.4,2657.7,3.76256]
[1724270618158,3.76154,2658.5,2657.8,3.76237]
[1724270618358,3.76124,2658.7,2657.9,4.514763]
[1724270618559,0.55,2658.6,2657.9,4.514763]
[1724270618859,3.76095,2658.9,2657.9,0.752493]
[1724270618860,3.76097,2658.9,2657.9,0.752493]
[1724270619063,3.76111,2658.8,2658.1,6.14517]
[1724270619287,3.76124,2658.7,2658.1,2.3832]
[1724270619911,3.76138,2658.6,2658.1,2.3832]
[1724270620064,3.7617,2658.4,2658.1,2.3832]
[1724270620263,3.76182,2658.3,2657.7,2.3531]
[1724270620496,3.76182,2658.3,2657.8,0.611589]
[1724270620695,3.76139,2658.6,2657.8,4.373999]
[1724270620909,3.76139,2658.6,2657.8,0.611589]
[1724270621081,4.1544494,2659.0,2658.3,3.76178]
[1724270621264,3.76096,2658.9,2658.4,0.376178]
[1724270621470,3.76096,2658.9,2658.1,3.76197]
[1724270621679,3.7611,2658.8,2658.1,3.76197]
[1724270621879,3.76141,2658.6,2657.9,6.11541]
[1724270622117,3.7611,2658.8,2657.9,6.11536]
[1724270622266,0.39353646,2658.6,2657.9,6.11536]
[1724270622465,0.39353646,2658.6,2657.8,0.611589]
[1724270622466,0.39353646,2658.6,2658.2,3.76189]
[1724270623111,0.39353646,2658.6,2658.5,3.76151]
[1724270623410,0.39353646,2658.6,2658.4,3.76164]
[1724270623625,0.39353646,2658.6,2658.1,5.4483]
[1724270623910,3.76106,2658.9,2658.1,2.4483]
[1724270624146,3.76113,2658.8,2658.2,0.31209949]
[1724270624358,3.76113,2658.8,2658.1,2.4483]
[1724270624650,3.76124,2658.7,2658.1,2.4483]
[1724270625330,3.76088,2659.0,2658.2,3.7619]
[1724270625646,3.76111,2658.8,2658.1,2.4483]
[1724270625796,3.76111,2658.8,2658.2,0.621038]
[1724270625993,0.39351437,2659.1,2658.2,0.621038]